[Event "*** Titled Tuesday Blitz"]
[Site "Chess.com"]
[Date "2020.04.21"]
[Round "5"]
[White "Alopekos"]
[Black "lestri"]
[Result "0-1"]
[WhiteElo "2380"]
[BlackElo "2537"]
[TimeControl "180+1"]
[EndTime "10:56:33 PDT"]
[Termination "lestri won on time"]

1. e4 {[%clk 0:03:00.9]} 1... d6 {[%clk 0:02:59.3]} 2. d4 {[%clk 0:03:00.1]}
2... Nf6 {[%clk 0:02:59.7]} 3. Nc3 {[%clk 0:03:00.7]} 3... e5 {[%clk 0:02:59.6]}
4. Nf3 {[%clk 0:03:00.8]} 4... Nbd7 {[%clk 0:02:58.6]} 5. Bc4 {[%clk 0:03:00.5]}
5... Be7 {[%clk 0:02:58.5]} 6. O-O {[%clk 0:02:59.7]} 6... O-O {[%clk
0:02:58.2]} 7. a4 {[%clk 0:03:00]} 7... a5 {[%clk 0:02:57.2]} 8. Qe2 {[%clk
0:02:58.9]} 8... c6 {[%clk 0:02:56.4]} 9. Rd1 {[%clk 0:02:58.1]} 9... exd4
{[%clk 0:02:56.3]} 10. Nxd4 {[%clk 0:02:58.5]} 10... Re8 {[%clk 0:02:56.3]} 11.
Bxf7+ {[%clk 0:02:18.1]} 11... Kxf7 {[%clk 0:02:54.9]} 12. Ne6 {[%clk
0:02:18.4]} 12... Kxe6 {[%clk 0:01:36.2]} 13. Qc4+ {[%clk 0:02:16.3]} 13... d5
{[%clk 0:01:34.5]} 14. exd5+ {[%clk 0:02:08.5]} 14... Kf7 {[%clk 0:01:30.9]} 15.
d6+ {[%clk 0:01:56.4]} 15... Kf8 {[%clk 0:01:29.9]} 16. Bf4 {[%clk 0:01:27.9]}
16... Nb6 {[%clk 0:01:20]} 17. Qc5 {[%clk 0:01:06]} 17... Nfd7 {[%clk
0:00:34.7]} 18. Qf5+ {[%clk 0:00:17]} 18... Bf6 {[%clk 0:00:32.5]} 19. Qxh7
{[%clk 0:00:15.3]} 19... Ne5 {[%clk 0:00:26.4]} 20. Ne4 {[%clk 0:00:11.4]} 20...
Nf7 {[%clk 0:00:25.7]} 21. d7 {[%clk 0:00:06.4]} 21... Bxd7 {[%clk 0:00:17.1]}
22. Nd6 {[%clk 0:00:04.8]} 22... Nxd6 {[%clk 0:00:13.9]} 23. Bxd6+ {[%clk
0:00:05.7]} 23... Kf7 {[%clk 0:00:14.1]} 24. Bc5 {[%clk 0:00:02.8]} 24... Nd5
{[%clk 0:00:13.2]} 25. c4 {[%clk 0:00:01.9]} 25... Nc7 {[%clk 0:00:12.8]} 0-1

[Event "*** Titled Tuesday Blitz"]
[Site "Chess.com"]
[Date "2020.04.21"]
[Round "5"]
[White "SmirnovAlexandrA"]
[Black "Mfcyryd"]
[Result "0-1"]
[WhiteElo "2373"]
[BlackElo "2535"]
[TimeControl "180+1"]
[EndTime "10:56:33 PDT"]
[Termination "Mfcyryd won by resignation"]

1. e4 {[%clk 0:03:00.9]} 1... c6 {[%clk 0:02:58.9]} 2. d4 {[%clk 0:03:00.4]}
2... d5 {[%clk 0:02:58.1]} 3. e5 {[%clk 0:03:00.6]} 3... Bf5 {[%clk 0:02:57.8]}
4. Nf3 {[%clk 0:03:01]} 4... e6 {[%clk 0:02:57.3]} 5. Be2 {[%clk 0:03:01.2]}
5... h6 {[%clk 0:02:55.7]} 6. O-O {[%clk 0:02:59.2]} 6... Ne7 {[%clk 0:02:55]}
7. Nbd2 {[%clk 0:02:57.7]} 7... Nd7 {[%clk 0:02:51.8]} 8. c3 {[%clk 0:02:56.5]}
8... g5 {[%clk 0:02:51.5]} 9. a4 {[%clk 0:02:55.4]} 9... Ng6 {[%clk 0:02:51.1]}
10. a5 {[%clk 0:02:50.5]} 10... Nf4 {[%clk 0:02:50.5]} 11. b4 {[%clk 0:02:44.1]}
11... h5 {[%clk 0:02:49.7]} 12. Nb3 {[%clk 0:02:39.8]} 12... Nxe2+ {[%clk
0:02:48.5]} 13. Qxe2 {[%clk 0:02:39.3]} 13... g4 {[%clk 0:02:49.3]} 14. Ne1
{[%clk 0:02:35.2]} 14... h4 {[%clk 0:02:47.4]} 15. Nd3 {[%clk 0:02:21.2]} 15...
Bh6 {[%clk 0:02:44]} 16. Ndc5 {[%clk 0:02:17]} 16... Nxc5 {[%clk 0:02:42.2]} 17.
Nxc5 {[%clk 0:02:15.8]} 17... Rb8 {[%clk 0:02:10.8]} 18. a6 {[%clk 0:02:05]}
18... b6 {[%clk 0:02:03.1]} 19. Nb7 {[%clk 0:02:02.3]} 19... Qd7 {[%clk
0:02:02.9]} 20. Nd6+ {[%clk 0:02:00.9]} 20... Ke7 {[%clk 0:02:02.4]} 21. Bxh6
{[%clk 0:01:56.8]} 21... Rxh6 {[%clk 0:02:01.8]} 22. Nxf5+ {[%clk 0:01:52.7]}
22... exf5 {[%clk 0:02:00.9]} 23. f4 {[%clk 0:01:47.6]} 23... h3 {[%clk
0:01:57.8]} 24. g3 {[%clk 0:01:46.8]} 24... Ke6 {[%clk 0:01:57.9]} 25. Rfb1
{[%clk 0:01:40.3]} 25... Rhh8 {[%clk 0:01:57.6]} 26. Kf2 {[%clk 0:01:18.4]}
26... Rhd8 {[%clk 0:01:55.2]} 27. Ke3 {[%clk 0:01:18.4]} 27... Qc7 {[%clk
0:01:49.5]} 28. Rb2 {[%clk 0:01:02.9]} 28... c5 {[%clk 0:01:49]} 29. bxc5 {[%clk
0:00:58.8]} 29... bxc5 {[%clk 0:01:48.7]} 30. Rab1 {[%clk 0:00:57.7]} 30...
cxd4+ {[%clk 0:01:45.5]} 31. cxd4 {[%clk 0:00:58.6]} 31... Qc3+ {[%clk
0:01:45.4]} 32. Kf2 {[%clk 0:00:57.6]} 32... Qxd4+ {[%clk 0:01:45.3]} 33. Kf1
{[%clk 0:00:57.6]} 33... Rxb2 {[%clk 0:01:32]} 34. Qxb2 {[%clk 0:00:56.6]} 34...
Qd3+ {[%clk 0:01:26.5]} 35. Ke1 {[%clk 0:00:53.7]} 35... Qxa6 {[%clk 0:01:25.1]}
36. Ra1 {[%clk 0:00:46.7]} 36... Qb6 {[%clk 0:01:21.9]} 37. Qc3 {[%clk 0:00:42]}
37... Qg1+ {[%clk 0:01:16.5]} 38. Kd2 {[%clk 0:00:41.9]} 38... Qxh2+ {[%clk
0:01:16.5]} 39. Kc1 {[%clk 0:00:42]} 39... Qg1+ {[%clk 0:01:11.4]} 40. Kc2
{[%clk 0:00:42]} 40... Qf2+ {[%clk 0:01:10.5]} 41. Kc1 {[%clk 0:00:40.8]} 41...
Qb6 {[%clk 0:01:02.9]} 42. Rxa7 {[%clk 0:00:28.3]} 42... h2 {[%clk 0:00:43.4]}
0-1

[Event "*** Titled Tuesday Blitz"]
[Site "Chess.com"]
[Date "2020.04.21"]
[Round "5"]
[White "ClockworkKubrick"]
[Black "ama18"]
[Result "0-1"]
[WhiteElo "2175"]
[BlackElo "2474"]
[TimeControl "180+1"]
[EndTime "10:56:34 PDT"]
[Termination "ama18 won by checkmate"]

1. e4 {[%clk 0:02:56.3]} 1... c5 {[%clk 0:02:59.7]} 2. Nf3 {[%clk 0:02:56.4]}
2... d6 {[%clk 0:02:59.9]} 3. Nc3 {[%clk 0:02:56.9]} 3... Nf6 {[%clk 0:02:58.9]}
4. Bb5+ {[%clk 0:02:56.6]} 4... Bd7 {[%clk 0:02:57.5]} 5. O-O {[%clk 0:02:56]}
5... a6 {[%clk 0:02:56.7]} 6. Bxd7+ {[%clk 0:02:54.9]} 6... Qxd7 {[%clk
0:02:57.6]} 7. d3 {[%clk 0:02:54.5]} 7... g6 {[%clk 0:02:56.5]} 8. h3 {[%clk
0:02:54.2]} 8... Bg7 {[%clk 0:02:57]} 9. Nh2 {[%clk 0:02:54.3]} 9... O-O {[%clk
0:02:57.7]} 10. f4 {[%clk 0:02:54.6]} 10... Nc6 {[%clk 0:02:58]} 11. Be3 {[%clk
0:02:54.5]} 11... b5 {[%clk 0:02:58]} 12. Qd2 {[%clk 0:02:54.8]} 12... Nd4
{[%clk 0:02:56.6]} 13. Rf2 {[%clk 0:02:53]} 13... b4 {[%clk 0:02:53]} 14. Nd1
{[%clk 0:02:52.6]} 14... Qb7 {[%clk 0:02:42.3]} 15. c3 {[%clk 0:02:51.8]} 15...
Nc6 {[%clk 0:02:32.9]} 16. f5 {[%clk 0:02:51.3]} 16... Ne5 {[%clk 0:02:30.3]}
17. Bg5 {[%clk 0:02:32.4]} 17... c4 {[%clk 0:02:12]} 18. d4 {[%clk 0:02:14.1]}
18... Nxe4 {[%clk 0:02:07.7]} 19. Qe3 {[%clk 0:02:05.7]} 19... Nxf2 {[%clk
0:01:39.8]} 20. Nxf2 {[%clk 0:02:05]} 20... Nc6 {[%clk 0:01:25.1]} 21. Bh6
{[%clk 0:02:04]} 21... bxc3 {[%clk 0:01:21.1]} 22. bxc3 {[%clk 0:02:03.1]} 22...
Qb2 {[%clk 0:01:12.4]} 23. Rf1 {[%clk 0:02:02.1]} 23... Bxh6 {[%clk 0:00:55.9]}
24. Qxh6 {[%clk 0:02:01.1]} 24... Qxc3 {[%clk 0:00:56.1]} 25. Nf3 {[%clk
0:01:56.1]} 25... Nxd4 {[%clk 0:00:48.2]} 26. Ng5 {[%clk 0:01:50.9]} 26... Ne2+
{[%clk 0:00:46.8]} 27. Kh2 {[%clk 0:01:49.8]} 27... Qe5+ {[%clk 0:00:44.9]} 28.
Kh1 {[%clk 0:01:44.4]} 28... Ng3+ {[%clk 0:00:44.4]} 29. Kg1 {[%clk 0:01:44.6]}
29... Qg7 {[%clk 0:00:44]} 30. Qxg7+ {[%clk 0:01:40.9]} 30... Kxg7 {[%clk
0:00:44.9]} 31. Re1 {[%clk 0:01:35.7]} 31... Nxf5 {[%clk 0:00:44.8]} 32. g4
{[%clk 0:01:32.4]} 32... Nd4 {[%clk 0:00:38.7]} 33. Kg2 {[%clk 0:01:31.6]} 33...
e5 {[%clk 0:00:37.5]} 34. Nfe4 {[%clk 0:01:31.7]} 34... f6 {[%clk 0:00:29.3]}
35. Nf3 {[%clk 0:01:24.3]} 35... Nxf3 {[%clk 0:00:29.4]} 36. Kxf3 {[%clk
0:01:25.2]} 36... d5 {[%clk 0:00:30]} 37. Nc5 {[%clk 0:01:19.9]} 37... Kf7
{[%clk 0:00:28.8]} 38. Rd1 {[%clk 0:01:17.1]} 38... Rfd8 {[%clk 0:00:28.4]} 39.
a4 {[%clk 0:01:14.4]} 39... a5 {[%clk 0:00:26.9]} 40. g5 {[%clk 0:01:14.2]}
40... Rab8 {[%clk 0:00:25.4]} 41. gxf6 {[%clk 0:01:13.7]} 41... Kxf6 {[%clk
0:00:26.3]} 42. Kg4 {[%clk 0:01:13.4]} 42... d4 {[%clk 0:00:24.3]} 43. h4 {[%clk
0:01:10.2]} 43... c3 {[%clk 0:00:23.7]} 44. Rf1+ {[%clk 0:01:09.2]} 44... Ke7
{[%clk 0:00:23.6]} 45. Kg5 {[%clk 0:01:07.6]} 45... c2 {[%clk 0:00:20.9]} 46.
Nd3 {[%clk 0:01:06.5]} 46... e4 {[%clk 0:00:20.3]} 47. Ne5 {[%clk 0:01:03.4]}
47... Rd5 {[%clk 0:00:19.5]} 48. Kf4 {[%clk 0:01:02]} 48... Rf8+ {[%clk
0:00:18.4]} 49. Kxe4 {[%clk 0:01:02.4]} 49... Rxe5+ {[%clk 0:00:17.7]} 50. Kxd4
{[%clk 0:01:02.2]} 50... Rxf1 {[%clk 0:00:18.6]} 51. h5 {[%clk 0:01:01.7]} 51...
c1=Q {[%clk 0:00:18.7]} 52. h6 {[%clk 0:01:02.6]} 52... Qe3+ {[%clk 0:00:18.6]}
53. Kc4 {[%clk 0:01:02.7]} 53... Rc1# {[%clk 0:00:19.5]} 0-1

[Event "*** Titled Tuesday Blitz"]
[Site "Chess.com"]
[Date "2020.04.21"]
[Round "5"]
[White "Saxar85"]
[Black "albano87"]
[Result "1-0"]
[WhiteElo "2596"]
[BlackElo "2377"]
[TimeControl "180+1"]
[EndTime "10:56:35 PDT"]
[Termination "Saxar85 won by resignation"]

1. Nf3 {[%clk 0:02:59.8]} 1... c5 {[%clk 0:02:57.7]} 2. b3 {[%clk 0:02:58.2]}
2... Nc6 {[%clk 0:02:54.4]} 3. Bb2 {[%clk 0:02:57.6]} 3... d6 {[%clk 0:02:51.9]}
4. d4 {[%clk 0:02:56.7]} 4... cxd4 {[%clk 0:02:48.2]} 5. Nxd4 {[%clk 0:02:56.5]}
5... Nf6 {[%clk 0:02:47.6]} 6. g3 {[%clk 0:02:55.7]} 6... Bd7 {[%clk 0:02:43.4]}
7. Bg2 {[%clk 0:02:55.3]} 7... a6 {[%clk 0:02:38.9]} 8. O-O {[%clk 0:02:53.9]}
8... e6 {[%clk 0:02:37.1]} 9. c4 {[%clk 0:02:52.6]} 9... Be7 {[%clk 0:02:36.2]}
10. e4 {[%clk 0:02:47.9]} 10... O-O {[%clk 0:02:35.4]} 11. Nc3 {[%clk
0:02:37.7]} 11... Qc7 {[%clk 0:02:32.3]} 12. Rc1 {[%clk 0:02:36.7]} 12... Nxd4
{[%clk 0:02:27.9]} 13. Qxd4 {[%clk 0:02:36]} 13... Rac8 {[%clk 0:02:23.5]} 14.
Rfd1 {[%clk 0:02:30.9]} 14... Rfd8 {[%clk 0:02:21.8]} 15. a4 {[%clk 0:02:25.5]}
15... Qa5 {[%clk 0:02:09.3]} 16. Qd2 {[%clk 0:02:17.2]} 16... Qb6 {[%clk
0:01:58]} 17. Qc2 {[%clk 0:02:10.3]} 17... Bc6 {[%clk 0:01:57]} 18. h3 {[%clk
0:02:02.8]} 18... Qc5 {[%clk 0:01:36.9]} 19. Ne2 {[%clk 0:01:58.3]} 19... b5
{[%clk 0:01:30.8]} 20. cxb5 {[%clk 0:01:56.4]} 20... Qxc2 {[%clk 0:01:23.6]} 21.
Rxc2 {[%clk 0:01:56.3]} 21... axb5 {[%clk 0:01:24.5]} 22. Rdc1 {[%clk
0:01:54.9]} 22... Bd7 {[%clk 0:01:10.8]} 23. Rxc8 {[%clk 0:01:52.9]} 23... Rxc8
{[%clk 0:01:10.7]} 24. Rxc8+ {[%clk 0:01:51.9]} 24... Bxc8 {[%clk 0:01:10.8]}
25. axb5 {[%clk 0:01:52]} 25... Nd7 {[%clk 0:01:10.8]} 26. Nd4 {[%clk
0:01:44.3]} 26... Nc5 {[%clk 0:01:06.1]} 27. Nc6 {[%clk 0:01:42.9]} 27... Kf8
{[%clk 0:01:03.5]} 28. b4 {[%clk 0:01:38.4]} 28... Nd3 {[%clk 0:00:57.2]} 29.
Bd4 {[%clk 0:01:33.5]} 29... e5 {[%clk 0:00:54.2]} 30. Bc3 {[%clk 0:01:29.5]}
30... Ke8 {[%clk 0:00:47.7]} 31. Bf1 {[%clk 0:01:26]} 31... Nc1 {[%clk 0:00:42]}
32. Bc4 {[%clk 0:01:22.5]} 32... Be6 {[%clk 0:00:39.3]} 33. Bxe6 {[%clk
0:01:21.7]} 33... fxe6 {[%clk 0:00:39.4]} 34. Kf1 {[%clk 0:01:18.8]} 34... Bd8
{[%clk 0:00:36.3]} 35. Nxd8 {[%clk 0:01:13.1]} 35... Kxd8 {[%clk 0:00:37.2]} 36.
Ke1 {[%clk 0:01:13.1]} 36... Nb3 {[%clk 0:00:34.3]} 37. Kd1 {[%clk 0:01:00.3]}
37... Kc7 {[%clk 0:00:33.2]} 38. Kc2 {[%clk 0:00:59.7]} 38... Nd4+ {[%clk
0:00:33.4]} 39. Bxd4 {[%clk 0:00:59.4]} 39... exd4 {[%clk 0:00:33.9]} 40. Kd3
{[%clk 0:00:59.5]} 40... Kb6 {[%clk 0:00:30.3]} 41. Kxd4 {[%clk 0:00:58.4]}
41... Kxb5 {[%clk 0:00:28.8]} 42. Kc3 {[%clk 0:00:57.7]} 42... g5 {[%clk
0:00:26.7]} 43. f4 {[%clk 0:00:57.1]} 1-0

[Event "*** Titled Tuesday Blitz"]
[Site "Chess.com"]
[Date "2020.04.21"]
[Round "5"]
[White "MilanovicDan"]
[Black "1977Ivan"]
[Result "0-1"]
[WhiteElo "2458"]
[BlackElo "2693"]
[TimeControl "180+1"]
[EndTime "10:56:36 PDT"]
[Termination "1977Ivan won on time"]

1. d4 {[%clk 0:02:54]} 1... Nf6 {[%clk 0:02:59.8]} 2. c4 {[%clk 0:02:53.7]} 2...
d6 {[%clk 0:02:59.9]} 3. Nc3 {[%clk 0:02:50.4]} 3... e5 {[%clk 0:02:59.8]} 4.
Nf3 {[%clk 0:02:43.4]} 4... Nfd7 {[%clk 0:02:54.9]} 5. e4 {[%clk 0:02:37.4]}
5... Be7 {[%clk 0:02:54.6]} 6. Be2 {[%clk 0:02:31.5]} 6... O-O {[%clk
0:02:54.6]} 7. O-O {[%clk 0:02:31.2]} 7... a5 {[%clk 0:02:52.6]} 8. Be3 {[%clk
0:02:29]} 8... c6 {[%clk 0:02:46.8]} 9. Qc2 {[%clk 0:02:27.8]} 9... Na6 {[%clk
0:02:44.4]} 10. Rad1 {[%clk 0:02:26.3]} 10... Qc7 {[%clk 0:02:44.5]} 11. a3
{[%clk 0:02:17.9]} 11... Re8 {[%clk 0:02:43.7]} 12. d5 {[%clk 0:02:10.3]} 12...
Ndc5 {[%clk 0:02:41.8]} 13. b3 {[%clk 0:02:09.6]} 13... Rf8 {[%clk 0:02:38.8]}
14. Qb2 {[%clk 0:01:43.9]} 14... f5 {[%clk 0:02:36.8]} 15. exf5 {[%clk
0:01:40.2]} 15... Bxf5 {[%clk 0:02:35.9]} 16. b4 {[%clk 0:01:40.1]} 16... axb4
{[%clk 0:02:35.5]} 17. axb4 {[%clk 0:01:40.2]} 17... Ne4 {[%clk 0:02:15.2]} 18.
dxc6 {[%clk 0:01:11]} 18... Nxc3 {[%clk 0:02:09.2]} 19. Qxc3 {[%clk 0:01:10.4]}
19... bxc6 {[%clk 0:02:09.4]} 20. c5 {[%clk 0:00:57.2]} 20... d5 {[%clk
0:01:59.9]} 21. Nxe5 {[%clk 0:00:49.8]} 21... Nxb4 {[%clk 0:01:57.9]} 22. f4
{[%clk 0:00:25.4]} 22... Nc2 {[%clk 0:01:49.7]} 23. Bf2 {[%clk 0:00:23.8]} 23...
Ra3 {[%clk 0:01:47.4]} 24. Qd2 {[%clk 0:00:23.7]} 24... Bf6 {[%clk 0:01:08.4]}
25. Bd3 {[%clk 0:00:21.4]} 25... Bxd3 {[%clk 0:01:04.6]} 26. Nxd3 {[%clk
0:00:20.5]} 26... Nd4 {[%clk 0:01:05.1]} 27. Rde1 {[%clk 0:00:16.3]} 27... Nb5
{[%clk 0:01:03.9]} 28. Re6 {[%clk 0:00:12.7]} 28... Nc3 {[%clk 0:00:59.9]} 29.
Nb4 {[%clk 0:00:09.2]} 29... Ne4 {[%clk 0:00:58.3]} 30. Qe2 {[%clk 0:00:06.6]}
30... Qb7 {[%clk 0:00:50]} 31. Nxc6 {[%clk 0:00:05.4]} 31... Qd7 {[%clk
0:00:50]} 32. f5 {[%clk 0:00:04.8]} 32... Nc3 {[%clk 0:00:43.8]} 33. Qd3 {[%clk
0:00:03.1]} 33... d4 {[%clk 0:00:39.1]} 34. Qc4 {[%clk 0:00:02.6]} 34... Kh8
{[%clk 0:00:37.9]} 35. h3 {[%clk 0:00:01.9]} 35... d3 {[%clk 0:00:35.9]} 0-1

[Event "*** Titled Tuesday Blitz"]
[Site "Chess.com"]
[Date "2020.04.21"]
[Round "5"]
[White "czasnaszachy"]
[Black "kallerotmg"]
[Result "0-1"]
[WhiteElo "2332"]
[BlackElo "2183"]
[TimeControl "180+1"]
[EndTime "10:56:36 PDT"]
[Termination "kallerotmg won by resignation"]

1. d4 {[%clk 0:02:38.3]} 1... Nf6 {[%clk 0:02:59]} 2. c4 {[%clk 0:02:38.4]} 2...
e6 {[%clk 0:02:44.3]} 3. Nc3 {[%clk 0:02:38.4]} 3... Bb4 {[%clk 0:02:35.3]} 4.
e3 {[%clk 0:02:38.3]} 4... O-O {[%clk 0:02:23.8]} 5. Ne2 {[%clk 0:02:38.9]} 5...
d5 {[%clk 0:02:04.2]} 6. a3 {[%clk 0:02:39.1]} 6... Be7 {[%clk 0:02:00.8]} 7.
cxd5 {[%clk 0:02:38.4]} 7... exd5 {[%clk 0:02:01.4]} 8. g3 {[%clk 0:02:37.3]}
8... c6 {[%clk 0:02:01.8]} 9. Bg2 {[%clk 0:02:37.4]} 9... Na6 {[%clk 0:02:02.4]}
10. O-O {[%clk 0:02:37.6]} 10... Nc7 {[%clk 0:02:02.9]} 11. f3 {[%clk
0:02:36.8]} 11... Re8 {[%clk 0:02:00.4]} 12. e4 {[%clk 0:02:35.5]} 12... dxe4
{[%clk 0:01:47.7]} 13. fxe4 {[%clk 0:02:35.2]} 13... Bg4 {[%clk 0:01:34.9]} 14.
Be3 {[%clk 0:02:23.2]} 14... Ne6 {[%clk 0:01:03.4]} 15. Qd2 {[%clk 0:02:09]}
15... Qd7 {[%clk 0:00:57.6]} 16. Nf4 {[%clk 0:02:00]} 16... Rad8 {[%clk
0:00:51.2]} 17. Nxe6 {[%clk 0:01:48.6]} 17... Qxe6 {[%clk 0:00:52.1]} 18. Qf2
{[%clk 0:01:40.3]} 18... Bh5 {[%clk 0:00:43.6]} 19. Rae1 {[%clk 0:01:12.7]}
19... Ng4 {[%clk 0:00:42.8]} 20. Qd2 {[%clk 0:00:58.2]} 20... Nxe3 {[%clk
0:00:41]} 21. Qxe3 {[%clk 0:00:56.8]} 21... Qc4 {[%clk 0:00:25.7]} 22. d5 {[%clk
0:00:47]} 22... Bc5 {[%clk 0:00:24.7]} 23. Kh1 {[%clk 0:00:40.2]} 23... Bxe3
{[%clk 0:00:24.6]} 24. Rxe3 {[%clk 0:00:41.1]} 24... cxd5 {[%clk 0:00:24.9]} 25.
Nxd5 {[%clk 0:00:39.8]} 25... Rxd5 {[%clk 0:00:24.5]} 26. Rc3 {[%clk 0:00:34.1]}
26... Qxf1+ {[%clk 0:00:22.8]} 27. Bxf1 {[%clk 0:00:33.4]} 27... Rd1 {[%clk
0:00:23.4]} 28. Kg2 {[%clk 0:00:33.3]} 28... Bg6 {[%clk 0:00:22]} 29. Bb5 {[%clk
0:00:27.8]} 29... Rd2+ {[%clk 0:00:21.4]} 30. Kf3 {[%clk 0:00:25.5]} 30... Red8
{[%clk 0:00:22]} 31. Rc7 {[%clk 0:00:20]} 31... a6 {[%clk 0:00:22.4]} 32. Be2
{[%clk 0:00:17.2]} 32... Bxe4+ {[%clk 0:00:21.2]} 33. Ke3 {[%clk 0:00:14.6]}
33... Bc6 {[%clk 0:00:19.9]} 34. b4 {[%clk 0:00:13.5]} 34... R2d7 {[%clk
0:00:20.3]} 35. Rxd7 {[%clk 0:00:13.1]} 35... Rxd7 {[%clk 0:00:21]} 36. Bc4
{[%clk 0:00:12.7]} 36... Re7+ {[%clk 0:00:21.9]} 0-1

[Event "*** Titled Tuesday Blitz"]
[Site "Chess.com"]
[Date "2020.04.21"]
[Round "5"]
[White "Matibar"]
[Black "NTDVAN12"]
[Result "0-1"]
[WhiteElo "2766"]
[BlackElo "2638"]
[TimeControl "180+1"]
[EndTime "10:56:37 PDT"]
[Termination "NTDVAN12 won by resignation"]

1. Nf3 {[%clk 0:03:00.9]} 1... d5 {[%clk 0:02:59.6]} 2. h3 {[%clk 0:03:00.9]}
2... g6 {[%clk 0:02:56.8]} 3. c4 {[%clk 0:02:54.9]} 3... d4 {[%clk 0:02:54.6]}
4. e3 {[%clk 0:02:54]} 4... Nc6 {[%clk 0:02:53.7]} 5. exd4 {[%clk 0:02:41.7]}
5... Nxd4 {[%clk 0:02:54.6]} 6. Nc3 {[%clk 0:02:41.8]} 6... Bg7 {[%clk
0:02:53.2]} 7. Nxd4 {[%clk 0:02:41]} 7... Qxd4 {[%clk 0:02:49.2]} 8. Nb5 {[%clk
0:02:39.7]} 8... Qd8 {[%clk 0:02:43.7]} 9. d4 {[%clk 0:02:12.2]} 9... c6 {[%clk
0:02:41.6]} 10. Nc3 {[%clk 0:02:12.3]} 10... Qxd4 {[%clk 0:02:38.6]} 11. Qb3
{[%clk 0:01:54]} 11... Nf6 {[%clk 0:02:28]} 12. Be3 {[%clk 0:01:54]} 12... Qe5
{[%clk 0:02:27.8]} 13. Be2 {[%clk 0:01:51.5]} 13... O-O {[%clk 0:02:23.4]} 14.
O-O {[%clk 0:01:52.1]} 14... b6 {[%clk 0:02:19.7]} 15. Bf3 {[%clk 0:01:51.6]}
15... Bb7 {[%clk 0:02:17.2]} 16. Rfe1 {[%clk 0:01:52.1]} 16... Qc7 {[%clk
0:02:15.9]} 17. c5 {[%clk 0:01:52.3]} 17... Nd7 {[%clk 0:02:12.2]} 18. cxb6
{[%clk 0:01:43.4]} 18... axb6 {[%clk 0:02:13.1]} 19. Rac1 {[%clk 0:01:43.8]}
19... c5 {[%clk 0:02:09.6]} 20. Nd5 {[%clk 0:01:12.8]} 20... Bxd5 {[%clk
0:02:08.8]} 21. Bxd5 {[%clk 0:01:13.7]} 21... Rac8 {[%clk 0:01:53.4]} 22. Qc2
{[%clk 0:01:04.2]} 22... e6 {[%clk 0:01:52.9]} 23. Be4 {[%clk 0:01:02.2]} 23...
Nf6 {[%clk 0:01:50.5]} 24. Bf3 {[%clk 0:01:02.4]} 24... Nd5 {[%clk 0:01:50.2]}
25. Bd2 {[%clk 0:01:02.3]} 25... h6 {[%clk 0:01:43]} 26. b4 {[%clk 0:00:59.8]}
26... cxb4 {[%clk 0:01:38.5]} 27. Qxc7 {[%clk 0:00:58.5]} 27... Rxc7 {[%clk
0:01:39.1]} 28. Rxc7 {[%clk 0:00:57.6]} 28... Nxc7 {[%clk 0:01:40]} 29. Bxb4
{[%clk 0:00:58]} 29... Rd8 {[%clk 0:01:39.6]} 30. Rb1 {[%clk 0:00:55]} 30... Nd5
{[%clk 0:01:35.1]} 31. Be1 {[%clk 0:00:52.8]} 31... Bd4 {[%clk 0:01:32.6]} 32.
Bd1 {[%clk 0:00:37.8]} 32... Bc3 {[%clk 0:01:26.3]} 33. Bb3 {[%clk 0:00:37.4]}
33... Bxe1 {[%clk 0:01:25.6]} 34. Rxe1 {[%clk 0:00:38.3]} 34... Nc3 {[%clk
0:01:12.1]} 35. Re3 {[%clk 0:00:35.5]} 35... Nb5 {[%clk 0:01:11.1]} 36. Bc4
{[%clk 0:00:27.5]} 36... Rd1+ {[%clk 0:01:04.2]} 37. Kh2 {[%clk 0:00:26.6]}
37... Nd4 {[%clk 0:01:03.8]} 38. g4 {[%clk 0:00:19.5]} 38... Rd2 {[%clk
0:00:39.6]} 39. Kg3 {[%clk 0:00:18.6]} 39... Kg7 {[%clk 0:00:34.9]} 40. Bb3
{[%clk 0:00:14.6]} 40... g5 {[%clk 0:00:35.1]} 41. f4 {[%clk 0:00:13.6]} 41...
Ne2+ {[%clk 0:00:34]} 0-1

[Event "*** Titled Tuesday Blitz"]
[Site "Chess.com"]
[Date "2020.04.21"]
[Round "5"]
[White "Budisavljevic"]
[Black "tteshan"]
[Result "0-1"]
[WhiteElo "2424"]
[BlackElo "2255"]
[TimeControl "180+1"]
[EndTime "10:56:38 PDT"]
[Termination "tteshan won by checkmate"]

1. d4 {[%clk 0:03:00.9]} 1... Nf6 {[%clk 0:02:58.5]} 2. Nf3 {[%clk 0:03:01]}
2... e6 {[%clk 0:02:58]} 3. Bf4 {[%clk 0:03:01.1]} 3... b6 {[%clk 0:02:54.9]} 4.
e3 {[%clk 0:03:01]} 4... Bb7 {[%clk 0:02:54.8]} 5. Bd3 {[%clk 0:02:58.5]} 5...
Be7 {[%clk 0:02:51.2]} 6. h3 {[%clk 0:02:58.6]} 6... d6 {[%clk 0:02:49.3]} 7. c4
{[%clk 0:02:53.2]} 7... Nbd7 {[%clk 0:02:47.1]} 8. Nc3 {[%clk 0:02:53.2]} 8...
c5 {[%clk 0:02:42.4]} 9. O-O {[%clk 0:02:36.9]} 9... O-O {[%clk 0:02:32.9]} 10.
d5 {[%clk 0:02:32.6]} 10... e5 {[%clk 0:02:29.4]} 11. Bh2 {[%clk 0:02:22.3]}
11... Re8 {[%clk 0:02:23.5]} 12. Nd2 {[%clk 0:02:19.9]} 12... Bf8 {[%clk
0:02:15.2]} 13. Qc2 {[%clk 0:02:16.1]} 13... g6 {[%clk 0:02:14.7]} 14. Rae1
{[%clk 0:02:13.8]} 14... Bg7 {[%clk 0:02:12.8]} 15. a3 {[%clk 0:02:12.3]} 15...
a5 {[%clk 0:02:08.1]} 16. b3 {[%clk 0:02:05.5]} 16... Rc8 {[%clk 0:02:02.5]} 17.
Rb1 {[%clk 0:01:47.3]} 17... Qe7 {[%clk 0:01:38.9]} 18. b4 {[%clk 0:01:28.5]}
18... axb4 {[%clk 0:01:37.5]} 19. axb4 {[%clk 0:01:29.4]} 19... b5 {[%clk
0:01:17.7]} 20. bxc5 {[%clk 0:00:56.9]} 20... bxc4 {[%clk 0:01:08.2]} 21. Rxb7
{[%clk 0:00:38.1]} 21... cxd3 {[%clk 0:01:06.6]} 22. Qxd3 {[%clk 0:00:38]} 22...
Nxc5 {[%clk 0:01:02.8]} 23. Rxe7 {[%clk 0:00:35.5]} 23... Nxd3 {[%clk
0:01:01.8]} 24. Rxe8+ {[%clk 0:00:35.5]} 24... Nxe8 {[%clk 0:01:00.1]} 25. Nce4
{[%clk 0:00:29.6]} 25... f5 {[%clk 0:00:48.5]} 26. Ng5 {[%clk 0:00:27.2]} 26...
Rc2 {[%clk 0:00:46.8]} 27. Nb3 {[%clk 0:00:22.6]} 27... Nc7 {[%clk 0:00:43.2]}
28. Bg3 {[%clk 0:00:15.7]} 28... Nxd5 {[%clk 0:00:38.5]} 29. f3 {[%clk
0:00:12.6]} 29... Nxe3 {[%clk 0:00:31.9]} 30. Ra1 {[%clk 0:00:10.4]} 30... Rxg2+
{[%clk 0:00:28.7]} 31. Kh1 {[%clk 0:00:10.6]} 31... Rxg3 {[%clk 0:00:25.5]} 32.
Ra8+ {[%clk 0:00:10.3]} 32... Bf8 {[%clk 0:00:25.7]} 33. Ne6 {[%clk 0:00:09.9]}
33... Nf2+ {[%clk 0:00:22.7]} 34. Kh2 {[%clk 0:00:09.9]} 34... Rg2# {[%clk
0:00:22.6]} 0-1